bitfinex-derivatives/quotes_ETHF0:USTF0_20250410
["timestamp","ask_amount","ask_price","bid_price","bid_amount"]
[1744259565958,3.01074,1610.6,1610.5,6.23984913]
[1744259570575,3.01074,1610.6,1610.5,1.24227]
[1744259572769,1.7685,1610.6,1610.5,1.24227]
[1744259572966,3.01074,1610.6,1610.5,1.24227]
[1744259575379,1.7685,1610.6,1610.5,1.24227]
[1744259575580,1.71290532,1610.7,1610.6,1.24224]
[1744259575770,3.41990532,1610.7,1610.6,1.24224]
[1744259576080,5.32e-06,1610.7,1610.6,6.17084]
[1744259576474,5.32e-06,1610.7,1610.6,11.17084]
[1744259576674,5.32e-06,1610.7,1610.6,6.17084]
[1744259576874,5.32e-06,1610.7,1610.6,11.17084]
[1744259581181,1.6679,1611.2,1611.1,1.24185]
[1744259581482,13.09140997,1611.3,1611.2,1.24178]
[1744259581685,13.09140997,1611.3,1611.2,3.00268]
[1744259582783,13.09140997,1611.3,1611.2,8.00268]
[1744259583976,14.33310997,1611.3,1611.2,5.0]
[1744259584383,19.33310997,1611.3,1611.2,5.0]
[1744259584584,19.86929409,1611.3,1611.2,5.0]
[1744259584979,14.86929409,1611.3,1611.2,5.0]
[1744259585184,10.45929409,1611.3,1611.2,1.24178]
[1744259586484,1.24185,1611.1,1611.0,1.24187]
[1744259587084,1.24201,1610.9,1610.8,2.92693]
[1744259587285,6.44479,1611.0,1610.9,1.24201]
[1744259589278,5.2028,1611.0,1610.9,1.24201]
[1744259589586,6.44473,1611.0,1610.9,1.24201]
[1744259589784,1.24201,1610.9,1610.8,1.24204]
[1744259589986,1.24212,1610.8,1610.7,1.24209]
[1744259590185,1.24216,1610.7,1610.6,10.95129937]
[1744259590485,2.93086,1610.7,1610.6,9.70908937]
[1744259591282,13.76485409,1610.7,1610.6,0.04088827]
[1744259593488,13.76485409,1610.7,1610.4,0.00931532]
[1744259593489,1.24232,1610.5,1610.4,0.00931532]
[1744259594393,2.92802,1610.5,1610.4,0.00931532]
[1744259594789,1.2427,1610.0,1609.9,4.99757913]
[1744259594991,1.2427,1610.0,1609.9,1.24278]
[1744259595194,1.2427,1610.0,1609.9,42.04278]
[1744259595592,2.9284,1610.0,1609.9,42.04278]
[1744259596897,2.9284,1610.0,1609.9,40.8]
[1744259597288,2.9284,1610.0,1609.9,42.04278]
[1744259597597,2.9284,1610.0,1609.9,40.8]
[1744259597890,1.24278,1609.9,1609.8,1.25217532]
[1744259598084,3.01138,1609.9,1609.8,1.25217532]
[1744259598288,3.01138,1609.9,1609.8,42.05217532]
[1744259599096,3.01138,1609.9,1609.8,40.80931532]
[1744259599494,3.01138,1609.9,1609.8,0.00931532]
[1744259599699,8.01138,1609.9,1609.8,0.00931532]
[1744259599896,1.24306,1609.6,1609.5,1.24301]
[1744259600095,1.243,1609.7,1609.6,1.24295]
[1744259600290,2.8726,1609.7,1609.6,1.24295]
[1744259601396,2.87253,1609.7,1609.6,2.97605]
[1744259602301,2.87253,1609.7,1609.6,1.7331]
[1744259602491,1.24301,1609.6,1609.5,40.80931532]
[1744259602786,2.92621,1609.6,1609.5,40.80931532]
[1744259602990,2.92621,1609.6,1609.5,42.05240532]
[1744259603200,2.92621,1609.6,1609.5,40.80931532]
[1744259603401,2.92621,1609.6,1609.5,0.00931532]
[1744259603903,2.92621,1609.6,1609.5,42.05240532]
[1744259604607,12.04854409,1609.8,1609.7,1.24293]
[1744259604608,5.83399409,1609.8,1609.7,1.24293]
[1744259604807,5.83399409,1609.8,1609.7,4.45073]
[1744259605197,5.83399409,1609.8,1609.7,6.17643]
[1744259605492,7.07685409,1609.8,1609.7,11.17643]
[1744259605699,2.92604,1609.9,1609.8,1.24286]
[1744259606005,1.24278,1610.0,1609.9,1.24274]
[1744259606205,1.24278,1609.9,1609.8,2.85989]
[1744259607205,1.24278,1609.9,1609.8,1.6171]
[1744259607508,1.24286,1609.8,1609.7,1.24287]
[1744259607892,2.92949,1609.9,1609.8,1.24286]
[1744259608397,9.31421532,1610.1,1609.8,5.96703]
[1744259608600,10.55689532,1610.1,1610.0,1.2427]
[1744259608899,1.25194532,1610.1,1610.0,1.2427]
[1744259609397,2.91984532,1610.1,1610.0,1.2427]
[1744259609611,1.2427,1610.0,1609.9,2.85002]
[1744259609803,1.6679,1610.0,1609.9,2.85002]
[1744259610407,2.9106,1610.0,1609.9,7.85002]
[1744259611006,2.9106,1610.0,1609.9,6.24278]
[1744259611409,1.6679,1610.0,1609.9,6.24278]
[1744259612111,1.6679,1610.0,1609.9,7.79808]
[1744259612408,0.00931532,1610.1,1610.0,1.2427]
[1744259612602,0.00931532,1610.1,1610.0,4.3482]
[1744259615706,0.00931532,1610.1,1610.0,7.556]
[1744259615911,0.00931532,1610.1,1610.0,12.556]
[1744259616307,0.00931532,1610.1,1610.0,17.556]
[1744259617007,5.32e-06,1610.1,1610.0,22.55357913]
[1744259619118,5.32e-06,1610.1,1610.0,17.55357913]
[1744259619406,5.32e-06,1610.1,1610.0,12.556]
[1744259619614,1.65480532,1610.1,1610.0,9.3482]
[1744259619812,1.65480532,1610.1,1610.0,7.798]
[1744259620107,2.89743532,1610.1,1610.0,6.2427]
[1744259620310,7.89743532,1610.1,1610.0,5.0]
[1744259620511,7.89743532,1610.1,1610.0,6.2427]
[1744259620916,7.89743532,1610.1,1610.0,1.2427]
[1744259621409,6.65480532,1610.1,1609.8,6.4444]
[1744259621716,1.24293,1609.8,1609.7,1.24292]
[1744259622215,1.24293,1609.8,1609.6,1.24295]
[1744259622216,1.24295,1609.7,1609.6,1.24295]
[1744259622412,2.91275,1609.7,1609.6,1.24295]
[1744259622815,1.24301,1609.6,1609.5,46.84018532]
[1744259623011,2.91281,1609.6,1609.5,45.26018532]
[1744259623310,1.6698,1609.6,1609.5,42.05238532]
[1744259624715,2.91281,1609.6,1609.5,42.05238532]
[1744259624915,1.6698,1609.6,1609.5,42.05238532]
[1744259625323,2.91281,1609.6,1609.5,42.05238532]
[1744259626223,1.6698,1609.6,1609.5,42.05238532]
[1744259627117,2.91281,1609.6,1609.5,42.05238532]
[1744259627419,1.6698,1609.6,1609.5,42.05238532]
[1744259627919,2.91281,1609.6,1609.5,42.05238532]
[1744259632320,1.6698,1609.6,1609.5,42.05238532]
[1744259632522,1.6698,1609.6,1609.5,43.60168532]
[1744259632715,2.91281,1609.6,1609.5,43.60168532]
[1744259633426,2.91281,1609.6,1609.5,40.80931532]
[1744259633722,2.91281,1609.6,1609.5,42.05240532]
[1744259634122,2.91281,1609.6,1609.5,40.80931532]
[1744259634715,2.91281,1609.6,1609.5,0.00931532]
[1744259634915,2.91281,1609.6,1609.5,1.25240532]
[1744259636319,2.91281,1609.6,1609.5,0.00931532]
[1744259640715,2.91281,1609.6,1609.5,1.25240532]
[1744259640921,2.91281,1609.6,1609.5,0.00931532]
[1744259641328,2.91281,1609.6,1609.5,1.25240532]
[1744259644438,2.91281,1609.6,1609.5,0.00931532]
[1744259644732,11.15120772,1609.6,1609.5,0.00931532]
[1744259646439,20.19300181,1609.6,1609.5,0.00931532]
[1744259646632,1.24371,1608.7,1608.6,14.6327737]
[1744259647232,5.65371,1608.7,1608.6,14.6327737]
[1744259647530,7.30841,1608.7,1608.6,14.6327737]
[1744259647737,18.14240409,1608.7,1608.6,8.01980966]
[1744259647927,18.63343772,1608.7,1608.6,8.01980966]
[1744259648126,18.14240409,1608.7,1608.6,8.01980966]
[1744259648826,18.14240409,1608.7,1608.5,19.26249776]
[1744259648827,1.24378,1608.6,1608.5,19.26249776]
[1744259649028,6.01578,1608.6,1608.5,19.26249776]
[1744259649926,2.80798,1608.6,1608.5,19.26249776]
[1744259650135,2.80798,1608.6,1608.5,20.50635776]
[1744259650533,7.6178,1608.7,1608.5,22.15915776]
[1744259650734,10.42571,1608.7,1608.6,1.6528]
[1744259651637,1.24378,1608.6,1608.5,19.26249776]
[1744259651839,2.79488,1608.6,1608.5,19.26249776]
[1744259652530,2.79488,1608.6,1608.5,0.00931532]
[1744259652944,1.5511,1608.6,1608.5,1.25317532]
[1744259653128,10.41267,1608.7,1608.6,1.24378]
[1744259653529,1.24378,1608.6,1608.5,2.89121532]
[1744259653732,10.41268,1608.7,1608.6,1.24378]
[1744259653940,4.41,1608.7,1608.6,2.88188]
[1744259654238,4.41,1608.7,1608.6,4.44598]
[1744259654536,4.84684803,1608.8,1608.7,1.24371]
[1744259654736,4.84684803,1608.8,1608.7,2.80681]
[1744259655330,4.84684803,1608.8,1608.7,7.80681]
[1744259656035,4.84684803,1608.8,1608.7,2.80681]
[1744259656235,1.25294532,1608.8,1608.7,2.80681]
[1744259656640,0.00931532,1608.8,1608.7,2.80681]
[1744259657428,1.25294532,1608.8,1608.7,2.80681]
[1744259657730,2.87534532,1608.8,1608.7,2.80681]
[1744259658334,1.24371,1608.7,1608.6,1.5641]
[1744259658640,1.24378,1608.6,1608.5,1.56811532]
[1744259658835,2.82958,1608.6,1608.5,0.00931532]
[1744259659035,5.9757,1608.7,1608.6,1.24378]
[1744259659235,8.84187,1608.7,1608.6,1.24378]
[1744259659641,1.24378,1608.6,1608.5,2.81191532]
[1744259659940,2.86618,1608.6,1608.5,2.81191532]
[1744259662542,2.86618,1608.6,1608.5,1.25311532]
[1744259664342,7.21947,1608.7,1608.6,1.24378]
[1744259664739,8.88517,1608.7,1608.6,1.24378]
[1744259664940,7.32147,1608.7,1608.6,1.24378]
[1744259665239,6.0777,1608.7,1608.6,2.87568]
[1744259665541,7.32141,1608.7,1608.6,2.87568]
[1744259666550,1.24378,1608.6,1608.5,1.25314532]
[1744259666844,2.86468,1608.6,1608.5,1.25314532]
[1744259667043,2.86468,1608.6,1608.5,2.87324532]
[1744259667546,1.24378,1608.6,1608.5,2.87324532]
[1744259667851,8.86436,1608.7,1608.6,1.24378]
[1744259668150,8.86436,1608.7,1608.6,2.86388]
[1744259669742,1.24378,1608.6,1608.5,1.25312532]
[1744259669939,2.86738,1608.6,1608.5,2.79762532]
[1744259670140,2.86738,1608.6,1608.5,0.00931532]
[1744259671346,6.07518,1608.6,1608.5,0.00931532]
[1744259672142,6.07518,1608.6,1608.5,1.25317532]
[1744259672646,2.86738,1608.6,1608.5,1.25317532]
[1744259672952,2.86738,1608.6,1608.5,0.00931532]
[1744259673844,6.07518,1608.6,1608.5,0.00931532]
[1744259674150,11.07518,1608.6,1608.5,0.00931532]
[1744259674349,3.11043,1608.2,1607.7,0.9478]
[1744259674540,1.2444,1607.8,1607.7,4.52788]
[1744259674942,1.2444,1607.8,1607.7,45.32788]
[1744259675145,1.2444,1607.8,1607.7,1.6601]
[1744259675346,1.2444,1607.8,1607.7,2.90458]
[1744259676050,1.2444,1607.8,1607.7,1.6601]
[1744259676443,5.6544,1607.8,1607.7,1.6601]
[1744259676643,1.24448,1607.7,1607.6,0.00931532]
[1744259676851,2.89648,1607.7,1607.6,1.59011532]
[1744259677754,4.41,1607.8,1607.6,1.59011532]
[1744259678052,2.90565532,1607.9,1607.8,1.2444]
[1744259678248,1.2444,1607.8,1607.7,2.82523]
[1744259678445,2.90568532,1607.9,1607.7,3.2078]
[1744259678646,1.66131532,1607.9,1607.6,0.00931532]
[1744259678846,1.24448,1607.7,1607.6,1.25387532]
[1744259679055,6.22321,1607.5,1607.0,19.25318244]
[1744259679353,1.24533,1606.6,1606.5,28.78515528]
[1744259679652,5.65633,1606.6,1606.5,28.78515528]
[1744259679947,10.65633,1606.6,1606.5,28.78515528]
[1744259680145,16.49032409,1606.6,1606.5,27.40776528]
[1744259680346,18.64184085,1606.6,1606.5,27.40776528]
[1744259680542,18.64184085,1606.6,1606.5,21.41292035]
[1744259680853,13.13402409,1606.6,1606.5,17.64513647]
[1744259681754,8.72202409,1606.6,1606.5,17.64513647]
[1744259681956,13.13402409,1606.6,1606.5,17.64513647]
[1744259682557,1.24541,1606.5,1606.4,0.00931532]
[1744259682754,1.6054,1606.5,1606.4,1.25480532]
[1744259682958,6.0174,1606.5,1606.4,1.25480532]
[1744259683158,7.63540532,1606.7,1606.4,1.25480532]
[1744259683462,4.414,1606.6,1606.4,0.00931532]
[1744259683760,6.0194,1606.6,1606.4,0.00931532]
[1744259684059,6.0194,1606.6,1606.4,42.05475532]
[1744259684459,2.85073,1606.6,1606.5,1.24541]
[1744259684754,6.0194,1606.6,1606.5,1.24541]
[1744259684961,7.26473,1606.6,1606.5,1.24541]
[1744259685151,2.85073,1606.6,1606.4,42.05476532]
[1744259685353,4.414,1606.5,1606.4,42.05476532]
[1744259685966,1.6054,1606.6,1606.5,1.24541]
[1744259686156,6.0194,1606.6,1606.5,1.24541]
[1744259686464,7.26473,1606.6,1606.5,1.24541]
[1744259687075,6.0194,1606.6,1606.5,1.24541]
[1744259687578,1.6054,1606.6,1606.5,1.24541]
[1744259687883,0.00931532,1606.7,1606.6,1.24533]
[1744259688070,0.00931532,1606.7,1606.6,6.24533]
[1744259689272,0.00931532,1606.7,1606.6,7.79813]
[1744259689671,0.00931532,1606.7,1606.6,12.79813]
[1744259690578,5.32e-06,1606.7,1606.6,12.79813]
[1744259691078,5.32e-06,1606.7,1606.6,17.79570913]
[1744259692370,5.32e-06,1606.7,1606.6,12.19253563]
[1744259692579,5.32e-06,1606.7,1606.6,13.43786563]
[1744259693976,10.6715268,1607.4,1607.3,1.24479]
[1744259693977,4.83753271,1607.4,1607.3,1.24479]
[1744259694165,4.83753271,1607.4,1607.3,4.45259]
[1744259694681,1.5362,1607.5,1607.4,1.24471]
[1744259694881,10.3080435,1607.5,1607.4,2.92221]
[1744259696380,11.5526835,1607.5,1607.4,2.92221]
[1744259697384,10.3080435,1607.5,1607.4,2.92221]
[1744259698181,5.9502,1607.5,1607.4,2.92221]
[1744259698381,10.3080435,1607.5,1607.4,2.92221]
[1744259699374,0.00931532,1607.6,1607.5,1.24464]
[1744259699583,4.83753271,1607.9,1607.8,1.2444]
[1744259699780,9.19537621,1607.9,1607.5,4.7714]
[1744259700087,4.414,1607.8,1607.7,1.24442]
[1744259700387,1.24448,1607.7,1607.6,42.04448]
[1744259700684,1.5801,1607.7,1607.6,42.04448]
[1744259700873,1.63901532,1607.8,1607.7,1.24448]
[1744259701191,0.00931532,1607.8,1607.7,6.13228]
[1744259702579,0.00931532,1607.8,1607.7,11.13228]
[1744259702975,0.00931532,1607.8,1607.7,7.92448]
[1744259703382,5.96685882,1607.8,1607.7,7.92448]
[1744259703685,7.21125882,1607.8,1607.7,6.24448]
[1744259703887,7.21125882,1607.8,1607.7,1.24448]
[1744259704081,8.76825882,1607.8,1607.7,1.24448]
[1744259704478,1.24448,1607.7,1607.6,1.24456]
[1744259704677,1.5997,1607.7,1607.6,1.24456]
[1744259704881,4.42031532,1607.8,1607.7,1.24448]
[1744259705082,4.42031532,1607.8,1607.7,43.63548]
[1744259705688,0.00931532,1607.8,1607.7,43.63548]
[1744259706691,4.36715882,1607.8,1607.7,42.04448]
[1744259706991,7.29205882,1607.8,1607.7,40.8]
[1744259707792,7.29205882,1607.8,1607.7,42.04448]
[1744259707989,7.29205882,1607.8,1607.7,1.24448]
[1744259708291,6.04765882,1607.8,1607.7,1.24448]
[1744259708790,10.45865882,1607.8,1607.7,2.77258]
[1744259708989,6.04765882,1607.8,1607.7,2.77258]
[1744259709190,0.00931532,1607.8,1607.7,2.77258]
[1744259709391,0.00931532,1607.8,1607.7,7.77258]
[1744259710087,7.22695882,1607.8,1607.7,6.24448]
[1744259710287,5.98255882,1607.8,1607.7,6.24448]
[1744259710483,5.98255882,1607.8,1607.7,7.82168]
[1744259710781,1.62471532,1607.8,1607.7,7.82168]
[1744259710985,0.00931532,1607.8,1607.7,7.82168]
[1744259712390,1.58721532,1607.8,1607.7,7.82168]
[1744259716297,2.83161532,1607.8,1607.7,6.24448]
[1744259716597,7.18945882,1607.8,1607.7,6.24448]
[1744259717097,7.18945882,1607.8,1607.7,1.24448]
[1744259717494,5.94505882,1607.8,1607.7,1.24448]
[1744259718198,7.18945882,1607.8,1607.7,1.24448]
[1744259719997,8.61465882,1607.8,1607.7,1.24448]
[1744259720398,7.37025882,1607.8,1607.7,1.24448]
[1744259720598,3.01241532,1607.8,1607.7,1.24448]
[1744259720799,0.00931532,1607.8,1607.7,1.24448]
[1744259720999,0.00931532,1607.8,1607.7,4.36508]
[1744259721200,5.32e-06,1607.8,1607.7,9.36508]
[1744259721405,5.32e-06,1607.8,1607.7,14.36508]
[1744259723000,5.32e-06,1607.8,1607.7,9.36508]
[1744259723200,5.60224882,1607.8,1607.7,6.24448]
[1744259723392,7.17494882,1607.8,1607.7,5.0]
[1744259723592,8.70904882,1607.8,1607.7,5.0]
[1744259723900,7.46464882,1607.8,1607.7,6.24448]
[1744259724101,8.70904882,1607.8,1607.7,6.24448]
[1744259724503,8.70904882,1607.8,1607.7,1.24448]
[1744259725003,7.46464882,1607.8,1607.7,1.24448]
[1744259725201,5.32e-06,1607.8,1607.7,2.86908]
[1744259725603,5.32e-06,1607.8,1607.7,7.86908]
[1744259726304,5.32e-06,1607.8,1607.7,12.86908]
[1744259727199,5.32e-06,1607.8,1607.7,7.86908]
[1744259728000,5.32e-06,1607.8,1607.7,12.86908]
[1744259728195,5.32e-06,1607.8,1607.7,17.86665913]
[1744259728402,5.32e-06,1607.8,1607.7,58.66665913]
[1744259728604,5.32e-06,1607.8,1607.7,53.66665913]
[1744259731309,5.60224882,1607.8,1607.7,47.04448]
[1744259731505,13.64404882,1607.8,1607.7,5.0]
[1744259731808,1.24448,1607.7,1607.6,4.45236]
[1744259732008,7.33408,1607.7,1607.6,4.45236]
[1744259732205,11.6919235,1607.7,1607.6,4.45236]
[1744259732600,6.0384435,1607.7,1607.6,4.45236]
[1744259732911,11.6919235,1607.7,1607.6,4.45236]
[1744259735514,16.52945621,1607.7,1607.6,4.45236]
[1744259737100,1.24456,1607.6,1607.5,42.04464]
[1744259737307,2.91296,1607.6,1607.5,42.04464]
[1744259737511,7.2708035,1607.6,1607.5,42.04464]
[1744259739716,7.2708035,1607.6,1607.5,40.8]
[1744259740008,7.2708035,1607.6,1607.3,0.00931532]
[1744259740009,1.24471,1607.4,1607.3,0.00931532]
[1744259740211,1.24471,1607.4,1607.3,1.25410532]
[1744259740212,5.65371,1607.4,1607.3,1.25410532]
[1744259740411,14.6158535,1607.4,1607.3,1.25410532]
[1744259740713,13.3711435,1607.4,1607.3,1.25410532]
[1744259740905,13.3711435,1607.4,1607.3,2.90790532]
[1744259740906,3.1213,1607.4,1607.3,2.90790532]
[1744259741110,19.96650965,1607.6,1607.5,1.24464]
[1744259741415,8.23951556,1607.6,1607.5,1.24464]
[1744259741610,9.48407556,1607.6,1607.5,2.89844]
[1744259741815,8.23951556,1607.6,1607.5,7.89844]
[1744259743113,8.23951556,1607.6,1607.5,8.58374]
[1744259743516,8.23951556,1607.6,1607.5,13.58374]
[1744259745418,8.23951556,1607.6,1607.5,48.69844]
[1744259746220,8.23951556,1607.6,1607.5,58.69601913]
[1744259746518,8.23951556,1607.6,1607.5,59.38211913]
[1744259746819,0.24606088,1607.6,1607.5,59.38211913]
[1744259747111,5.84846438,1607.6,1607.5,6.24464]
[1744259747315,5.84846438,1607.6,1607.5,5.0]
[1744259747512,16.73361497,1607.6,1607.5,5.0]
[1744259747715,1.24471,1607.4,1607.3,0.00931532]
[1744259747911,1.24471,1607.4,1607.3,1.25410532]
[1744259748719,1.5614,1607.5,1607.4,1.24471]
[1744259749219,2.80604,1607.5,1607.4,1.24471]
[1744259749712,1.5614,1607.5,1607.4,1.24471]
[1744259750011,10.70632287,1607.6,1607.5,1.24464]
[1744259750321,1.24464,1607.5,1607.4,2.89027]
[1744259750520,1.6783,1607.5,1607.4,1.24471]
[1744259750720,2.92294,1607.5,1607.4,2.89031]
[1744259750920,2.92294,1607.5,1607.4,1.24471]
[1744259751324,1.24471,1607.4,1607.3,1.25406532]
[1744259751621,2.92301,1607.4,1607.3,1.25406532]
[1744259752324,2.92301,1607.4,1607.3,6.25406532]
[1744259752723,1.6783,1607.4,1607.3,6.25406532]
[1744259753421,1.6783,1607.4,1607.3,7.83706532]
[1744259755024,2.92301,1607.4,1607.3,7.83706532]
[1744259755322,2.92301,1607.4,1607.3,6.25406532]
[1744259758818,4.36771,1607.4,1607.3,5.00931532]
[1744259759026,4.36771,1607.4,1607.3,0.00931532]
[1744259760322,4.36771,1607.4,1607.3,1.25410532]
[1744259761022,4.36771,1607.4,1607.3,0.00931532]
[1744259761425,4.36771,1607.4,1607.3,1.25410532]
[1744259762021,1.24469,1607.5,1607.4,1.24465]
[1744259762222,2.77339,1607.5,1607.4,1.24465]
[1744259762726,1.24471,1607.4,1607.3,2.93805532]
[1744259763028,2.77341,1607.4,1607.3,1.25405532]
[1744259764332,1.5287,1607.4,1607.3,1.25405532]
[1744259764531,1.5287,1607.4,1607.3,2.92225532]
[1744259764726,7.18522,1607.6,1607.5,1.24464]
[1744259764922,1.24464,1607.5,1607.4,2.91288]
[1744259765127,1.24471,1607.4,1607.3,1.25407532]
[1744259766124,2.79521,1607.4,1607.3,1.25407532]
[1744259766629,1.24502,1607.0,1606.9,4.99757913]
[1744259766823,3.11198,1607.3,1606.8,1.24517]
[1744259766824,7.52137,1607.1,1606.8,1.24517]
[1744259767024,1.24518,1606.8,1606.7,3.2078]
[1744259767220,1.24538,1606.6,1606.5,42.04538]
[1744259767424,4.35432,1606.7,1606.6,1.24533]
[1744259767626,5.89562,1606.7,1606.5,40.8]
[1744259767825,2.87183,1606.6,1606.5,43.67952532]
[1744259769034,2.87183,1606.6,1606.5,47.43411532]
[1744259769331,2.87183,1606.6,1606.5,45.80931532]
[1744259769534,7.87183,1606.6,1606.5,5.00931532]
[1744259770233,7.72561111,1606.6,1606.5,5.00931532]
[1744259770534,7.72561111,1606.6,1606.5,0.00931532]
[1744259771530,1.24557,1606.3,1606.2,44.0078]
[1744259772038,1.24557,1606.3,1606.2,40.8]
[1744259772240,1.24572,1606.1,1606.0,3.2078]
[1744259772736,1.24572,1606.1,1606.0,44.0078]
[1744259772943,4.44042,1606.1,1606.0,44.0078]
[1744259773633,4.44042,1606.1,1606.0,3.2078]
[1744259774639,1.2458,1606.0,1605.9,0.00931532]
[1744259774839,2.883,1606.0,1605.9,0.00931532]
[1744259777242,8.63721409,1606.1,1606.0,1.2458]
[1744259777435,10.29471409,1606.1,1606.0,1.2458]
[1744259777635,5.83399409,1606.1,1606.0,1.2458]
[1744259777839,4.85378111,1606.4,1606.3,1.24557]
[1744259778037,4.85378111,1606.4,1606.3,4.45337]
[1744259778734,4.85378111,1606.4,1606.3,6.06887]
[1744259778932,4.85378111,1606.4,1606.3,11.06887]
[1744259779432,0.85356047,1606.4,1606.3,16.06644913]
[1744259779632,4.7e-07,1606.4,1606.3,21.06644913]
[1744259779942,4.7e-07,1606.4,1606.3,61.86644913]
[1744259780345,0.00931532,1606.8,1606.7,1.24526]
[1744259780544,0.00931532,1606.8,1606.7,4.45306]
[1744259781231,0.00931532,1606.8,1606.7,42.04526]
[1744259781437,0.00931532,1606.8,1606.7,46.83986]
[1744259781838,0.00931532,1606.8,1606.7,51.83986]
[1744259782640,5.32e-06,1606.8,1606.7,56.83986]
[1744259782941,5.32e-06,1606.8,1606.7,58.09336]
[1744259784248,4.7e-07,1606.9,1606.8,1.24518]
[1744259784544,4.7e-07,1606.9,1606.8,10.65718]
[1744259784943,4.5589,1607.5,1607.4,1.24471]
[1744259785339,3.047,1607.5,1607.4,1.24471]
[1744259785539,1.24471,1607.4,1607.3,1.25404532]
[1744259785739,1.6048,1607.4,1607.3,1.25404532]
[1744259786344,1.4684,1607.5,1607.4,1.24471]
[1744259786647,1.6048,1607.5,1607.4,1.24471]
[1744259786847,1.6048,1607.5,1607.4,2.84821]
[1744259787843,1.25392532,1607.6,1607.4,1.6035]
[1744259788048,0.00931532,1607.6,1607.4,4.8113]
[1744259788249,1.654,1607.5,1607.4,11.05601]
[1744259788848,0.00931532,1607.6,1607.5,1.24464]
[1744259789149,1.66331532,1607.6,1607.5,2.79964]
[1744259789651,0.00931532,1607.6,1607.5,2.79964]
[1744259789847,2.90787532,1607.6,1607.5,2.79964]
[1744259790049,2.90787532,1607.6,1607.5,7.79964]
[1744259790243,2.90787532,1607.6,1607.5,6.24464]
[1744259790649,1.66331532,1607.6,1607.5,6.24464]
[1744259791655,0.00931532,1607.6,1607.5,1.24464]
[1744259791951,1.69391532,1607.6,1607.5,1.24464]
[1744259793055,1.69391532,1607.6,1607.5,6.24464]
[1744259793258,2.93847532,1607.6,1607.5,6.24464]
[1744259793556,1.69391532,1607.6,1607.5,6.24464]
[1744259795059,0.00931532,1607.6,1607.5,7.88024]
[1744259797656,0.00931532,1607.6,1607.5,11.08804]
[1744259804074,6.31843,1608.0,1607.5,11.08804]
[1744259804075,5.83399409,1608.1,1608.0,1.24425]
[1744259804278,3.1265,1608.1,1608.0,1.24425]
[1744259804667,3.1265,1608.1,1608.0,42.04425]
[1744259805371,3.1265,1608.1,1608.0,47.04425]
[1744259808381,4.37067,1608.1,1608.0,47.04425]
[1744259809272,3.1265,1608.1,1608.0,47.04425]
[1744259810178,4.37067,1608.1,1608.0,47.04425]
[1744259811276,4.37067,1608.1,1608.0,45.8]
[1744259811977,9.37067,1608.1,1608.0,45.8]
[1744259812173,9.37067,1608.1,1608.0,5.0]
[1744259812377,9.37067,1608.1,1607.7,1.24442]
[1744259812378,1.2444,1607.8,1607.7,1.24442]
[1744259812578,1.24455,1607.7,1607.6,1.24449]
[1744259812775,1.24455,1607.7,1607.6,42.04456]
[1744259813672,2.92817,1607.8,1607.7,1.24448]
[1744259813872,1.6837,1607.8,1607.7,1.24448]
[1744259814273,1.6837,1607.8,1607.7,2.87948]
[1744259815274,11.48627409,1608.0,1607.9,1.24433]
[1744259815981,13.11207409,1608.0,1607.9,1.24433]
[1744259816684,1.24442,1607.9,1607.8,1.24437]
[1744259816877,1.24445,1607.8,1607.7,1.2444]
[1744259817080,2.79366,1607.8,1607.7,1.24448]
[1744259817776,4.41946,1607.8,1607.7,1.24448]
[1744259818584,3.175,1607.8,1607.7,1.24448]
[1744259818881,4.4194,1607.8,1607.7,1.24448]
[1744259820683,1.24448,1607.7,1607.6,42.04449]
[1744259820876,4.55238,1607.7,1607.6,40.8]
[1744259821077,4.55238,1607.7,1607.6,1.24456]
[1744259821480,4.55238,1607.7,1607.6,42.04456]
[1744259822985,3.3079,1607.7,1607.6,45.25236]
[1744259823185,3.3079,1607.7,1607.6,46.90506]
[1744259823986,4.55238,1607.7,1607.6,46.90506]
[1744259824387,1.24448,1607.8,1607.7,1.24444]
[1744259824685,1.24448,1607.7,1607.6,45.2523]
[1744259824886,1.24448,1607.7,1607.6,42.0445]
[1744259825288,1.24448,1607.7,1607.6,40.8]
[1744259825788,2.79258,1607.7,1607.6,40.8]
[1744259825986,2.79258,1607.7,1607.6,42.04456]
[1744259828181,2.79258,1607.7,1607.6,40.8]
[1744259828182,3.72607051,1607.7,1607.6,40.8]
[1744259828382,3.72607051,1607.7,1607.6,42.04456]
[1744259829591,3.72607051,1607.7,1607.6,40.8]
[1744259830690,1.24456,1607.6,1607.5,1.24459]
[1744259830890,4.40076,1607.6,1607.5,1.24459]
[1744259831089,4.40076,1607.6,1607.5,42.04459]
[1744259831883,3.1562,1607.6,1607.5,45.25239]
[1744259832089,1.5584,1607.6,1607.5,45.25239]
[1744259832388,2.80296,1607.6,1607.5,48.54569]
[1744259832790,1.5584,1607.6,1607.5,48.54569]
[1744259832991,6.7674846,1607.7,1607.6,1.24456]
[1744259833188,6.7674846,1607.7,1607.6,4.52626]
[1744259834798,6.7674846,1607.7,1607.6,9.52626]
[1744259835501,14.05676342,1607.7,1607.6,9.52626]
[1744259835702,15.30124342,1607.7,1607.6,8.2817]
[1744259835998,15.30124342,1607.7,1607.6,5.0]
[1744259836393,16.86114342,1607.7,1607.6,5.0]
[1744259836900,16.86114342,1607.7,1607.6,6.24456]
[1744259837398,1.24456,1607.6,1607.5,45.29816]
[1744259838204,1.24456,1607.6,1607.5,53.50596]
[1744259838496,8.22276933,1607.7,1607.6,1.24456]
[1744259838701,8.22276933,1607.7,1607.6,2.90476]
[1744259839206,0.93349051,1607.7,1607.6,2.90476]
[1744259839703,0.93349051,1607.7,1607.6,12.90476]
[1744259841405,2.17797051,1607.7,1607.6,7.90476]
[1744259841604,0.93349051,1607.7,1607.6,7.90476]
[1744259842399,2.17797051,1607.7,1607.6,7.90476]
[1744259842601,2.50099051,1607.7,1607.6,7.90476]
[1744259843103,3.74547051,1607.7,1607.6,7.90476]
[1744259843306,2.50099051,1607.7,1607.6,7.90476]